fUST/lending_fUST_20240507
["ID","MTS","AMOUNT","RATE_DAILY","PERIOD"]
[326525244,1715043044697,-500.0,0.00016438,2]
[326525245,1715043044707,-500.0,0.00016438,2]
[326525246,1715043044716,-500.0,0.00016438,2]
[326525247,1715043044726,-500.0,0.00016438,2]
[326525248,1715043044735,-500.0,0.00016438,2]
[326525249,1715043044745,-500.0,0.00016438,2]
[326525250,1715043044755,-500.0,0.00016438,2]
[326525251,1715043044776,-500.0,0.00016438,2]
[326525252,1715043044785,-673.74,0.00016438,2]
[326525253,1715043044795,-500.0,0.00016438,2]
[326525254,1715043044806,-500.0,0.00016438,2]
[326525255,1715043044816,-501.16,0.00016438,2]
[326525256,1715043044825,-500.0,0.00016438,2]
[326525257,1715043044834,-500.0,0.00016438,2]
[326525258,1715043044844,-2913.06,0.00016438,2]
[326525259,1715043044853,-500.0,0.00016438,2]
[326525260,1715043044863,-500.0,0.00016438,2]
[326525261,1715043044875,-500.0,0.00016438,2]
[326525262,1715043044886,-1091.9,0.00016438,2]
[326525263,1715043044896,-500.0,0.00016438,2]
[326525264,1715043044905,-500.0,0.00016438,2]
[326525265,1715043044915,-500.0,0.00016438,2]
[326525266,1715043044925,-500.0,0.00016438,2]
[326525267,1715043044935,-500.0,0.00016438,2]
[326525268,1715043044944,-500.0,0.00016438,2]
[326525269,1715043044954,-500.0,0.00016438,2]
[326525270,1715043044964,-500.0,0.00016438,2]
[326525271,1715043044974,-564.54,0.00016438,2]
[326525272,1715043044985,-500.0,0.00016438,2]
[326525273,1715043044995,-500.0,0.00016438,2]
[326525274,1715043045005,-500.0,0.00016438,2]
[326525275,1715043045015,-500.0,0.00016438,2]
[326525276,1715043045025,-500.0,0.00016438,2]
[326525277,1715043045034,-500.0,0.00016438,2]
[326525278,1715043045044,-500.0,0.00016438,2]
[326525279,1715043045058,-500.0,0.00016438,2]
[326525280,1715043045068,-500.0,0.00016438,2]
[326525281,1715043045078,-500.0,0.00016438,2]
[326525282,1715043045087,-500.0,0.00016438,2]
[326525283,1715043045097,-224.407906,0.00016438,2]
[326525284,1715043045107,-500.0,0.00016438,2]
[326525285,1715043045117,-500.0,0.00016438,2]
[326525286,1715043045126,-500.0,0.00016438,2]
[326525287,1715043045136,-500.0,0.00016438,2]
[326525288,1715043045146,-500.0,0.00016438,2]
[326525289,1715043045155,-500.0,0.00016438,2]
[326525290,1715043045165,-500.0,0.00016438,2]
[326525291,1715043045174,-603.0,0.00016438,2]
[326525292,1715043045184,-500.0,0.00016438,2]
[326525293,1715043045194,-151.0,0.00016438,2]
[326525294,1715043045204,-151.0,0.00016438,2]
[326525295,1715043045214,-151.0,0.00016438,2]
[326525296,1715043045223,-151.0,0.00016438,2]
[326525297,1715043045233,-151.0,0.00016438,2]
[326525298,1715043045242,-229.219344,0.00016438,2]
[326525299,1715043045252,-163.356988,0.00016438,2]
[326525300,1715043045261,-500.0,0.00016438,2]
[326525301,1715043045270,-500.0,0.00016438,2]
[326525302,1715043045280,-500.0,0.00016438,2]
[326525303,1715043045289,-500.0,0.00016438,2]
[326525304,1715043045299,-500.0,0.00016438,2]
[326525305,1715043045309,-500.0,0.00016438,2]
[326525306,1715043045318,-500.0,0.00016438,2]
[326525307,1715043045329,-151.0,0.00016438,2]
[326525308,1715043045339,-500.0,0.00016438,2]
[326525309,1715043045349,-246.337922,0.00016438,2]
[326525310,1715043045358,-500.0,0.00016438,2]
[326525311,1715043045368,-500.0,0.00016438,2]
[326525312,1715043045378,-500.0,0.00016438,2]
[326525313,1715043045387,-598.62,0.00016438,2]
[326525314,1715043045396,-500.0,0.00016438,2]
[326525315,1715043045407,-871.22,0.00016438,2]
[326525316,1715043045416,-500.0,0.00016438,2]
[326525317,1715043045425,-500.0,0.00016438,2]
[326525318,1715043045435,-256.24102087,0.00016438,2]
[326525319,1715043045444,-500.0,0.00016438,2]
[326525320,1715043045454,-2583.09,0.00016438,2]
[326525321,1715043045463,-500.0,0.00016438,2]
[326525322,1715043045473,-500.0,0.00016438,2]
[326525323,1715043045482,-500.0,0.00016438,2]
[326525324,1715043045491,-5039.51,0.00016438,2]
[326525325,1715043045502,-396.98225373,0.00016438,2]
[326525326,1715043045511,-807.95,0.00016438,2]
[326525327,1715043045520,-574.78,0.00016438,2]
[326525328,1715043045530,-500.0,0.00016438,2]
[326525329,1715043045541,-3577.63,0.00016438,2]
[326525330,1715043045551,-2038.21,0.00016438,2]
[326525331,1715043045560,-151.0,0.00016438,2]
[326525332,1715043045570,-151.0,0.00016438,2]
[326525333,1715043045579,-500.0,0.00016438,2]
[326525334,1715043045589,-151.0,0.00016438,2]
[326525335,1715043045599,-500.0,0.00016438,2]
[326525336,1715043045608,-151.0,0.00016438,2]
[326525337,1715043045618,-500.0,0.00016438,2]
[326525338,1715043045629,-291.90695137,0.00016438,2]
[326525339,1715043045639,-500.0,0.00016438,2]
[326525340,1715043045649,-500.0,0.00016438,2]
[326525341,1715043045659,-500.0,0.00016438,2]
[326525342,1715043045668,-3021.31,0.00016438,2]
[326525343,1715043045677,-517.14253848,0.00016438,2]
[326525344,1715043045687,-500.0,0.00016438,2]
[326525345,1715043045696,-500.0,0.00016438,2]
[326525346,1715043045706,-771.7,0.00016438,2]
[326525347,1715043045715,-151.0,0.00016438,2]
[326525348,1715043045724,-151.23244,0.00016438,2]
[326525349,1715043045734,-500.0,0.00016438,2]
[326525350,1715043045743,-2644.07,0.00016438,2]
[326525351,1715043045753,-500.0,0.00016438,2]
[326525352,1715043045768,-500.0,0.00016438,2]
[326525353,1715043045777,-500.0,0.00016438,2]
[326525354,1715043045786,-640.0,0.00016438,2]
[326525355,1715043045796,-4800.49,0.00016438,2]
[326525356,1715043045805,-2101.41,0.00016438,2]
[326525357,1715043045814,-500.0,0.00016438,2]
[326525358,1715043045823,-500.0,0.00016438,2]
[326525359,1715043045832,-151.0,0.00016438,2]
[326525360,1715043045841,-151.0,0.00016438,2]
[326525361,1715043045851,-151.0,0.00016438,2]
[326525362,1715043045859,-151.0,0.00016438,2]
[326525363,1715043045868,-151.0,0.00016438,2]
[326525364,1715043045878,-500.0,0.00016438,2]
[326525365,1715043045887,-151.0,0.00016438,2]
[326525366,1715043045896,-500.0,0.00016438,2]
[326525368,1715043045905,-500.0,0.00016438,2]
[326525369,1715043045914,-500.0,0.00016438,2]
[326525370,1715043045923,-270.180311,0.00016438,2]
[326525371,1715043045932,-500.0,0.00016438,2]
[326525372,1715043045941,-500.0,0.00016438,2]
[326525373,1715043045951,-500.0,0.00016438,2]
[326525374,1715043045960,-500.0,0.00016438,2]
[326525375,1715043045969,-4252.91,0.00016438,2]
[326525376,1715043045978,-550.91,0.00016438,2]
[326525377,1715043046151,-500.0,0.00016438,2]
[326525378,1715043046168,-500.0,0.00016438,2]
[326525379,1715043046178,-500.0,0.00016438,2]
[326525380,1715043046187,-500.0,0.00016438,2]
[326525381,1715043046197,-500.0,0.00016438,2]
[326525382,1715043046206,-500.0,0.00016438,2]
[326525383,1715043046216,-576.72,0.00016438,2]
[326525384,1715043046225,-500.0,0.00016438,2]
[326525385,1715043046235,-500.0,0.00016438,2]
[326525386,1715043046245,-500.0,0.00016438,2]
[326525387,1715043046254,-500.0,0.00016438,2]
[326525388,1715043046263,-1106.71,0.00016438,2]
[326525389,1715043046272,-990.72,0.00016438,2]
[326525390,1715043046282,-500.0,0.00016438,2]
[326525391,1715043046292,-500.0,0.00016438,2]
[326525392,1715043046301,-500.0,0.00016438,2]
[326525393,1715043046311,-500.0,0.00016438,2]
[326525394,1715043046320,-500.0,0.00016438,2]
[326525395,1715043046332,-500.0,0.00016438,2]
[326525396,1715043046342,-500.0,0.00016438,2]
[326525397,1715043046352,-1588.02,0.00016438,2]
[326525398,1715043046362,-500.0,0.00016438,2]
[326525399,1715043046371,-1625.75,0.00016438,2]
[326525400,1715043046380,-500.0,0.00016438,2]
[326525401,1715043046393,-500.0,0.00016438,2]
[326525402,1715043046408,-1180.24,0.00016438,2]
[326525403,1715043046421,-465.09462597,0.00016438,2]
[326525404,1715043046431,-500.0,0.00016438,2]
[326525405,1715043046440,-500.0,0.00016438,2]
[326525406,1715043046449,-2937.46,0.00016438,2]
[326525407,1715043046459,-500.0,0.00016438,2]
[326525408,1715043046468,-500.0,0.00016438,2]
[326525409,1715043046477,-500.0,0.00016438,2]
[326525410,1715043046486,-500.0,0.00016438,2]
[326525411,1715043046495,-17916.39,0.00016438,2]
[326525412,1715043046504,-500.0,0.00016438,2]
[326525413,1715043046513,-685.85,0.00016438,2]
[326525414,1715043046523,-500.0,0.00016438,2]
[326525415,1715043046532,-500.0,0.00016438,2]
[326525416,1715043046541,-500.0,0.00016438,2]
[326525417,1715043046551,-500.0,0.00016438,2]
[326525418,1715043046560,-2107.49,0.00016438,2]
[326525419,1715043046569,-590.55,0.00016438,2]
[326525420,1715043046578,-500.0,0.00016438,2]
[326525421,1715043046588,-500.0,0.00016438,2]
[326525422,1715043046598,-500.0,0.00016438,2]
[326525423,1715043046607,-1614.18,0.00016438,2]
[326525424,1715043046617,-153.0,0.000165,2]
[326525425,1715043046626,-153.0,0.000165,2]
[326525426,1715043046636,-493.017,0.00016515,2]
[326525427,1715043046645,-18567.18026356,0.000166,5]
[326525428,1715043046654,-55555.0,0.000166,2]
[326525429,1715043046663,-151.0,0.000166,2]
[326525430,1715043046673,-160.60897055,0.00016699,2]
[326525431,1715043046683,-164470.58867958,0.000167,2]
[326525435,1715043797063,-7000.0,0.00014833,2]
[326525477,1715044238597,-250.0,0.00014775,2]
[326525478,1715044238606,-855.44540772,0.00014833,2]
[326525480,1715044238615,-882.36236229,0.00014869,2]
[326525570,1715044243934,-7590.68045331,0.00014869,2]
[326525575,1715044246873,-261.28175122,0.00014869,2]
[326525576,1715044246934,-2562.83247114,0.00014869,2]
[326525587,1715045279437,1000.0,0.0001,2]
[326525588,1715045279507,273.39000345,0.0001,2]
[326525589,1715045369183,-1488.15095815,0.00011243,2]
[326525590,1715045369204,-386.491954,0.00013699,2]
[326525591,1715045369228,-3932.60484923,0.00013856,2]
[326525606,1715045433516,-791.88365063,0.00013856,2]
[326525607,1715045433531,-20632.50090154,0.00013856,2]
[326525608,1715045433541,-20967.39515077,0.00013856,2]
[326525609,1715045433551,-189.22674349,0.00014769,2]
[326525610,1715045433560,-1445.781582,0.00014869,2]
[326525617,1715045439173,-5012.91802482,0.00014869,2]
[326526704,1715045625412,1882.10974914,9.999e-05,2]
[326526725,1715045860870,150.74373565,0.00022635,30]
[326526786,1715046639652,-994.02428363,0.00013508,2]
[326526830,1715046647239,-1.23581261,0.00013508,2]
[326526838,1715046654518,-23904.73990376,0.00013508,2]
[326526839,1715046654528,-193.245977,0.00013734,2]
[326526840,1715046654538,-189.25787124,0.00013756,2]
[326526841,1715046654548,-10769.17763456,0.00014757,2]
[326526842,1715046654560,-22204.03154859,0.00014757,2]
[326526905,1715047839121,-6972.83334,0.00013504,2]
[326526908,1715047839131,-920.39131579,0.00013663,2]
[326526911,1715047839142,-193.245977,0.00013733,2]
[326526913,1715047839152,-5384.58881728,0.00014748,2]
[326526918,1715047839161,-5373.64753107,0.00014748,2]
[326526926,1715047841798,-496.36527315,0.00014748,2]
[326526974,1715047847652,-156.06953661,0.0001472,2]
[326526976,1715047847661,-1906.79379586,0.00014748,2]
[326526979,1715047847673,-2428.06465339,0.00014748,2]
[326526981,1715047847684,-2369.92097165,0.00014748,2]
[326526982,1715047847696,-350.999985,0.00014748,2]
[326526997,1715048492215,1221.957,0.00027171,120]
[326526998,1715048648960,483.90729918,9.999e-05,2]
[326526999,1715048915930,-180.0,0.00016438,5]
[326527000,1715048919436,-180.0,0.00016438,5]
[326527001,1715048923426,-180.0,0.00016438,5]
[326527002,1715048932320,-180.0,0.00016438,5]
[326527003,1715048942252,-6400.0,0.00016438,5]
[326527004,1715048952619,-2389.7357831,0.00016438,5]
[326527005,1715048953812,-1000.0,0.000192,5]
[326527006,1715048954362,-520.8678925,0.00019449,5]
[326527047,1715049033836,4754.86789155,0.00016438,5]
[326527134,1715049048901,-483.90729918,0.00014619,2]
[326527135,1715049048910,-164.17647758,0.0001462,2]
[326527136,1715049048920,-156.06953661,0.0001472,2]
[326527137,1715049048929,-79.70918835,0.00014747,2]
[326527138,1715049155231,2377.43394577,0.00016438,5]
[326527139,1715049187488,-483.90729918,0.00014008,2]
[326527140,1715049187524,-932.34389995,0.00014009,2]
[326527141,1715049188122,-156.06953661,0.00014609,2]
[326527142,1715049188149,-331.13391324,0.00014747,2]
[326527143,1715049188174,-2692.29440864,0.00014748,2]
[326527144,1715049188202,-46365.99037326,0.00014748,2]
[326527145,1715049188226,-1080.71280173,0.00014754,2]
[326527146,1715049188250,-5583.23219754,0.00014756,2]
[326527147,1715049188274,-154.75412671,0.00014763,2]
[326527148,1715049188299,-791.1010471,0.00014763,2]
[326527149,1715049188322,-154.85086149,0.00014764,2]
[326527150,1715049188346,-4147.92433785,0.00014869,2]
[326527151,1715049188370,-2109.62015692,0.00015,2]
[326527152,1715049190287,156.06953662,0.00014849,2]
[326527153,1715049197215,153.0,0.00015,2]
[326527154,1715049197968,153.0,0.00015,2]
[326527155,1715049200114,50860.24113971,0.00014746,2]
[326527156,1715049205579,156.06953662,0.00014849,2]
[326527157,1715049220503,156.06953662,0.00014849,2]
[326527158,1715049274481,1188.71697289,0.00016699,5]
[326527159,1715049392008,594.35848644,0.00016438,5]
[326527160,1715049397231,7112.0000245,0.00014938,2]
[326527161,1715049514564,297.17924322,0.00016438,5]
[326527162,1715049630191,297.17924321,0.00016438,5]
[326527163,1715049633922,483.90729918,9.999e-05,2]
[326527165,1715049814963,521.86939753,9.999e-05,2]
[326527167,1715049889434,-164.9,0.00016915,3]
[326527168,1715049889463,-164.9,0.00017123,3]
[326527169,1715049889493,-164.9,0.0001733,3]
[326527170,1715049889523,-164.9,0.00017538,3]
[326527171,1715049889547,-164.9,0.00017746,3]
[326527172,1715049889575,-164.9,0.00017954,3]
[326527173,1715049889603,-164.9,0.00018161,3]
[326527174,1715049889632,-164.9,0.00018369,3]
[326527175,1715049889659,-164.9,0.00018577,3]
[326527176,1715049889837,-164.9,0.00018785,3]
[326527177,1715049889866,-164.9,0.00018992,3]
[326527178,1715049889902,-436.951743,0.00019178,4]
[326527179,1715049889926,-1000.0,0.000192,3]
[326527180,1715049889950,-1000.0,0.000192,4]
[326527181,1715049889974,-164.9,0.000192,3]
[326527182,1715049890005,-525.63048761,0.0002,4]
[326527183,1715049890028,-15058.61776939,0.0002,4]
[326527184,1715049900422,-5386.52631849,0.0002,4]
[326527185,1715049900888,-2000.0,0.0002,3]
[326527186,1715049940433,3138.70039602,0.00018,7]
[326527187,1715049959031,1590.67447555,0.00018,7]
[326527188,1715049981780,3977.23615695,0.0002,10]
[326527189,1715050090980,483.90729918,9.999e-05,2]
[326527190,1715050118387,180.0,0.00016612,5]
[326527247,1715050233321,-483.90729918,0.00015563,2]
[326527248,1715050233332,-234.47110401,0.00015564,2]
[326527249,1715050233341,-167.173135,0.0001589,2]
[326527250,1715050233351,-486.820948,0.0001589,2]
[326527251,1715050233361,-204.1392147,0.000159,2]
[326527252,1715050233371,-627.51344001,0.00015939,2]
[326527253,1715050233383,-991.46263386,0.00016,2]
[326527254,1715050233400,-26998.565398,0.000164,2]
[326527255,1715050233414,-10238.58571882,0.000164,2]
[326527260,1715050239368,-1035.11479926,0.000164,2]
[326527261,1715050239392,-985.39342427,0.000164,2]
[326527321,1715050247280,-203.75193867,0.00016399,2]
[326527322,1715050247290,-2177.42228953,0.000164,2]
[326527335,1715051441689,-167.173135,0.0001589,2]
[326527337,1715051441699,-620.375672,0.00015899,2]
[326527339,1715051441710,-991.46263386,0.00016,2]
[326527340,1715051441722,-6268.82264889,0.000164,2]
[326527391,1715051627537,525.69809346,0.0002,4]
[326527392,1715051641479,525.69809346,0.0002,4]
[326527393,1715051666643,525.69809346,0.0002,4]
[326527394,1715051675522,180.0,0.00016612,5]
[326527395,1715051683839,525.69809346,0.0002,4]
[326527396,1715051702635,525.69809346,0.0002,4]
[326527397,1715051718118,528.50758392,0.0002,4]
[326527398,1715051816218,436.951743,0.00019178,4]
[326527399,1715052025353,164.9,0.00016915,3]
[326527400,1715052025987,164.9,0.00017123,3]
[326527401,1715052027975,164.9,0.0001733,3]
[326527402,1715052029603,164.9,0.00017538,3]
[326527403,1715052030386,164.9,0.00017746,3]
[326527404,1715052031115,164.9,0.00017954,3]
[326527405,1715052031902,164.9,0.00018161,3]
[326527406,1715052032606,164.9,0.00018369,3]
[326527407,1715052033360,164.9,0.00018577,3]
[326527408,1715052034756,164.9,0.00018785,3]
[326527409,1715052035577,164.9,0.00018992,3]
[326527410,1715052037712,164.9,0.000192,3]
[326527411,1715052391882,45910.0,0.00027,30]
[326527543,1715052649087,-250.0,0.00015105,2]
[326527546,1715052649101,-52.55,0.00015187,2]
[326527625,1715053019764,150.0,0.00027171,120]
[326527628,1715053609218,39462.50981647,0.00027,30]
[326527629,1715053647478,10053.80727493,0.00027,30]
[326527698,1715053844344,-111.62647758,0.00015187,2]
[326527699,1715053844354,-8841.18598358,0.00015204,2]
[326527708,1715053903646,5259.31450799,0.000211,9]
[326527709,1715054963883,240.27596315,9.999e-05,2]
[326527718,1715055034373,-17853.19791891,0.00015345,2]
[326527720,1715055034384,-16779.8789064,0.00015346,2]
[326527722,1715055034394,-620.0187836,0.00015859,2]
[326527724,1715055034404,-462.4799,0.0001589,2]
[326527726,1715055034415,-167.173135,0.0001589,2]
[326527728,1715055034425,-991.46263386,0.00016,2]
[326527730,1715055034435,-156.06953661,0.00016235,2]
[326527732,1715055034445,-483.90729918,0.00016398,2]
[326527734,1715055034456,-158.60020702,0.00016398,2]
[326527736,1715055034466,-708.55311686,0.00016398,2]
[326527738,1715055034476,-414.27722311,0.00016398,2]
[326527740,1715055034487,-151.0,0.00016398,2]
[326527742,1715055034498,-155.1247259,0.00016398,2]
[326527744,1715055034508,-893.6698568,0.00016398,2]
[326527745,1715055034517,-236.13395469,0.00016398,2]
[326527747,1715055034527,-151.0,0.00016398,2]
[326527749,1715055034537,-151.0,0.00016398,2]
[326527751,1715055034548,-155.15904832,0.00016398,2]
[326527753,1715055034558,-240.67821283,0.00016398,2]
[326527755,1715055034568,-155.18026764,0.00016399,2]
[326527757,1715055034578,-2768.88236731,0.00016399,2]
[326527759,1715055034591,-151.0,0.00016399,2]
[326527761,1715055034601,-153.233699,0.00016399,2]
[326527763,1715055034612,-32957.49676154,0.000164,2]
[326527851,1715055785951,214.0,0.00027,30]
[326527852,1715056164130,157.61088999,0.00014944,2]
[326527949,1715056239785,-15691.05079064,0.00015043,2]
[326527950,1715056239796,-346.54334823,0.00015044,2]
[326527989,1715056631018,157.61088999,0.00014944,2]
[326527990,1715056822811,15655.2827124,0.00014912,2]
[326528017,1715057443103,-285.26297634,0.00015044,2]
[326528018,1715057443113,-157.61088999,0.00015215,2]
[326528019,1715057443123,-157.61088999,0.00015486,2]
[326528020,1715057443133,-371.59478578,0.000155,2]
[326528097,1715057446792,-6964.1,0.000155,2]
[326528143,1715057461599,285.26297634,0.00015,2]
[326528144,1715057479563,285.26297634,0.00015,2]
[326528146,1715057499256,285.26297634,0.00015,2]
[326528147,1715057519560,285.26297634,0.00015,2]
[326528150,1715057540773,285.26297634,0.00015,2]
[326528151,1715057552543,2108.74816516,0.00016612,5]
[326528152,1715057565559,433.04288218,0.00015,2]
[326528153,1715057671711,1054.37408258,0.00016612,5]
[326528154,1715057700477,773.03387851,0.00014758,2]
[326528155,1715057729854,154.73694719,0.0001461,2]
[326528156,1715057744441,195.22418623,0.0001461,2]
[326528157,1715057793965,527.1870413,0.00016612,5]
[326528158,1715057925309,263.59352065,0.00016612,5]
[326528159,1715058030128,263.59352064,0.00016612,5]
[326528205,1715058391628,17.64722419,0.00013946,2]
[326528206,1715058392092,755.38665432,0.00013946,2]
[326528208,1715058477308,3000.0,0.00014417,2]
[326528209,1715058488758,24900.0,0.00014417,2]
[326528226,1715058638081,-2153.06372081,0.00015027,2]
[326528227,1715058638091,-627.13870719,0.00015028,2]
[326528229,1715058638101,-189.25787124,0.00015299,2]
[326528231,1715058638110,-187.77608324,0.00015397,2]
[326528233,1715058638120,-8926.59895946,0.00015492,2]
[326528235,1715058638130,-59291.78258338,0.00015492,2]
[326528236,1715058638140,-447.71619137,0.00015497,2]
[326528237,1715058638150,-5906.37299636,0.000155,2]
[326528238,1715058638160,-929.30313536,0.00015578,2]
[326528242,1715058638357,-153.0,0.000156,2]
[326528243,1715058638369,-306.0,0.000156,2]
[326528244,1715058638378,-153.0,0.000156,2]
[326528245,1715058638387,-153.0,0.000156,2]
[326528246,1715058638402,-154.3601093,0.000156,2]
[326528247,1715058638412,-307.9780015,0.000156,2]
[326528248,1715058638423,-153.0,0.000156,2]
[326528249,1715058638433,-153.0,0.000156,2]
[326528250,1715058638443,-153.5705877,0.000156,2]
[326528251,1715058638452,-306.0,0.000156,2]
[326528252,1715058638464,-153.0,0.000156,2]
[326528253,1715058638474,-153.0,0.000156,2]
[326528254,1715058638484,-306.0,0.000156,2]
[326528255,1715058638495,-153.0,0.000156,2]
[326528256,1715058638505,-153.0,0.000156,2]
[326528257,1715058638514,-155.0435859,0.000156,2]
[326528258,1715058638524,-306.0,0.000156,2]
[326528259,1715058638533,-153.0,0.000156,2]
[326528260,1715058638543,-306.0,0.000156,2]
[326528261,1715058638552,-153.0,0.000157,2]
[326528262,1715058638562,-620.35693536,0.00015779,2]
[326528263,1715058638572,-153.0,0.000158,2]
[326528264,1715058638582,-153.0,0.000158,2]
[326528267,1715058638592,-153.0,0.000158,2]
[326528269,1715058638602,-153.0,0.000158,2]
[326528271,1715058638611,-153.0,0.000158,2]
[326528273,1715058638621,-153.0,0.000158,2]
[326528275,1715058638635,-153.0,0.000158,2]
[326528277,1715058638644,-306.0,0.000158,2]
[326528279,1715058638653,-153.0,0.000158,2]
[326528281,1715058638663,-306.0,0.000158,2]
[326528283,1715058638672,-153.0,0.000158,2]
[326528285,1715058638682,-153.0,0.000158,2]
[326528287,1715058638691,-153.0,0.000158,2]
[326528289,1715058638701,-153.0,0.000158,2]
[326528291,1715058638710,-153.0,0.000158,2]
[326528293,1715058638719,-187.77608322,0.00015868,2]
[326528295,1715058638729,-439.355905,0.0001589,2]
[326528297,1715058638743,-167.40424,0.0001589,2]
[326528299,1715058638752,-167.173135,0.0001589,2]
[326528300,1715058638762,-991.46263386,0.00016,2]
[326528301,1715058638772,-187.77608322,0.00016338,2]
[326528302,1715058638783,-827.23342263,0.00016396,2]
[326528303,1715058638793,-7905.30668103,0.00016397,2]
[326528304,1715058638802,-151.0,0.00016397,2]
[326528305,1715058638812,-234.47110401,0.00016398,2]
[326528306,1715058638822,-483.90729918,0.00016398,2]
[326528307,1715058638831,-2403.87808626,0.00016398,2]
[326528308,1715058638841,-2103.48558965,0.00016398,2]
[326528309,1715058638850,-943.58431304,0.00016398,2]
[326528310,1715058638859,-151.0,0.00016398,2]
[326528311,1715058638869,-151.0,0.00016398,2]
[326528312,1715058638878,-746.45289198,0.00016399,2]
[326528313,1715058638887,-7291.46407278,0.00016399,2]
[326528314,1715058638896,-151.0,0.00016399,2]
[326528315,1715058638905,-73016.15003866,0.000164,2]
[326528316,1715058638915,-151.0,0.000164,2]
[326528317,1715058638931,-1786.99105712,0.00016436,2]
[326528318,1715058638941,-437.28396107,0.00016438,2]
[326528319,1715058639098,-64.8470438,0.00016438,2]
[326528320,1715058639108,-500.0,0.00016438,2]
[326528321,1715058639118,-500.0,0.00016438,2]
[326528322,1715058639128,-504.092714,0.00016438,2]
[326528323,1715058639137,-282.84416593,0.00016438,2]
[326528325,1715058640523,-217.15583407,0.00016438,2]
[326528326,1715058640533,-618.81512289,0.00016438,2]
[326528328,1715058640543,-169.31295823,0.00016438,2]
[326528355,1715058650126,-330.68704177,0.00016438,2]
[326528357,1715058650139,-502.93213175,0.00016438,2]
[326528359,1715058650149,-1.5784595,0.00016438,2]
[326528360,1715058650163,-500.66373662,0.00016438,2]
[326528361,1715058650173,-502.8657441,0.00016438,2]
[326528362,1715058650184,-46.95137766,0.00016438,2]
[326528363,1715058689472,1000.0,0.0002,5]
[326528364,1715058725875,1000.0,0.00021,9]
[326528365,1715058751175,2000.0,0.00027,30]
[326528366,1715058909294,154.56698865,0.0001579,7]
[326528369,1715059334119,1036.0,0.0002,10]
[326528392,1715059832900,-154.75239617,0.00015097,2]
[326528393,1715059832911,-313.15763,0.00015098,2]
[326528394,1715059832920,-236.13395469,0.00015193,2]
[326528395,1715059832930,-300.0,0.00015193,2]
[326528396,1715059832939,-893.6698568,0.00015194,2]
[326528397,1715059832948,-24900.0,0.00015195,2]
[326528398,1715059832958,-616.22881713,0.00015296,2]
[326528399,1715059832967,-158.60020702,0.00015296,2]
[326528400,1715059832977,-708.55311686,0.00015296,2]
[326528401,1715059832988,-414.27722311,0.00015296,2]
[326528402,1715059832997,-155.1247259,0.00015296,2]
[326528403,1715059833007,-155.18026764,0.00015297,2]
[326528404,1715059833031,-2768.88236731,0.00015297,2]
[326528405,1715059833041,-439.355905,0.0001589,2]
[326528406,1715059833051,-167.40424,0.0001589,2]
[326528407,1715059833061,-991.46263386,0.00016,2]
[326528408,1715059833071,-306.0,0.00016,2]
[326528409,1715059833080,-153.0,0.00016,2]
[326528410,1715059833090,-157.61088999,0.00016283,2]
[326528411,1715059833102,-157.61088999,0.00016297,2]
[326528412,1715059833112,-1004.84,0.000163,2]
[326528413,1715059833122,-153.0,0.000163,2]